bitfinex/quotes_BTCUSD_20241011
["timestamp","ask_amount","ask_price","bid_price","bid_amount"]
[1728648780208,0.25554056,61291.0,61290.0,0.001]
[1728648780611,0.25554056,61291.0,61286.0,0.163168]
[1728648780612,0.163159,61290.0,61286.0,0.163168]
[1728648780843,0.014,61288.0,61286.0,0.164168]
[1728648781058,0.014,61288.0,61285.0,0.001]
[1728648781293,0.163161,61289.0,61284.0,0.079736]
[1728648781563,0.3752192,61297.0,61284.0,0.079736]
[1728648781564,0.1,61296.0,61294.0,0.163146]
[1728648781763,0.32100336,61301.0,61290.0,0.263258]
[1728648781764,0.014,61291.0,61290.0,0.263258]
[1728648781986,0.014,61291.0,61290.0,0.59873704]
[1728648781987,0.028,61291.0,61290.0,0.59873704]
[1728648782214,0.028,61291.0,61290.0,0.674774]
[1728648782426,0.014,61291.0,61290.0,0.674774]
[1728648782894,0.24774756,61300.0,61290.0,0.674774]
[1728648782895,0.24774756,61300.0,61299.0,0.163134]
[1728648783113,0.24774756,61300.0,61299.0,0.243434]
[1728648783561,0.163114,61307.0,61303.0,0.163123]
[1728648784253,0.48931,61311.0,61303.0,0.163123]
[1728648784489,0.48931,61311.0,61304.0,0.163119]
[1728648784490,0.1693093,61310.0,61304.0,0.163119]
[1728648784709,0.014,61307.0,61304.0,0.163119]
[1728648784923,0.028,61307.0,61304.0,0.163119]
[1728648785379,0.028,61307.0,61303.0,0.002]
[1728648785578,0.014,61307.0,61303.0,0.164122]
[1728648785782,0.028,61307.0,61304.0,0.001]
[1728648786004,0.028,61307.0,61306.0,0.163116]
[1728648786216,0.014,61307.0,61306.0,0.163116]
[1728648786462,0.014,61307.0,61306.0,0.17845393]
[1728648787118,0.1833093,61310.0,61306.0,0.17845393]
[1728648787119,0.1693093,61310.0,61306.0,0.01533793]
[1728648787363,0.1693093,61310.0,61306.0,0.002]
[1728648787364,0.028,61307.0,61306.0,0.002]
[1728648787821,0.028,61307.0,61306.0,0.165116]
[1728648788056,0.014,61307.0,61306.0,0.164116]
[1728648788963,0.014,61307.0,61306.0,0.243516]
[1728648789207,0.014,61307.0,61306.0,0.42781346]
[1728648789438,0.014,61307.0,61306.0,0.42881346]
[1728648789897,0.014,61307.0,61306.0,0.42781346]
[1728648790120,0.000818,61315.0,61313.0,0.163096]
[1728648791070,0.000818,61315.0,61309.0,0.326215]
[1728648791288,0.000818,61315.0,61310.0,0.163104]
[1728648791541,0.014818,61315.0,61313.0,0.001]
[1728648791770,0.000818,61315.0,61310.0,0.163104]
[1728648792005,0.000818,61315.0,61306.0,0.0804]
[1728648792006,0.1693093,61314.0,61306.0,0.0804]
[1728648792233,0.1693093,61314.0,61309.0,0.001]
[1728648792473,0.163105,61310.0,61309.0,0.001]
[1728648793418,0.163105,61310.0,61309.0,0.002]
[1728648793883,0.163103,61311.0,61309.0,0.001]
[1728648794179,0.011,61310.0,61309.0,0.0161747]
[1728648794394,0.011,61310.0,61309.0,0.001]
[1728648794848,0.025,61310.0,61309.0,0.0171747]
[1728648795756,0.177105,61310.0,61309.0,0.0161747]
[1728648795984,0.177105,61310.0,61309.0,0.0171747]
[1728648796452,0.45635408,61310.0,61309.0,0.0161747]
[1728648796689,0.45635408,61310.0,61309.0,0.001]
[1728648796938,0.46735408,61310.0,61309.0,0.002]
[1728648798077,0.46735408,61310.0,61309.0,0.0171747]
[1728648799586,0.46735408,61310.0,61309.0,0.002]
[1728648800494,0.35737305,61310.0,61309.0,0.002]
[1728648801875,0.3434143,61310.0,61309.0,0.001]
[1728648802104,0.3574143,61310.0,61309.0,0.002]
[1728648802331,0.3574143,61310.0,61309.0,0.001]
[1728648802332,0.3464143,61310.0,61309.0,0.001]
[1728648802790,0.3594143,61310.0,61309.0,0.002]
[1728648803030,0.51002416,61310.0,61309.0,0.002]
[1728648803268,0.49702416,61310.0,61309.0,0.001]
[1728648803499,0.51002416,61310.0,61309.0,0.002]
[1728648804896,0.51002416,61310.0,61309.0,0.01720988]
[1728648805142,0.51002416,61310.0,61309.0,0.002]
[1728648807967,0.3594143,61310.0,61309.0,0.002]
[1728648812159,0.3594143,61310.0,61309.0,0.003636]
[1728648812632,0.4595143,61310.0,61309.0,0.003636]
[1728648812866,0.4591143,61310.0,61309.0,0.003636]
[1728648815237,0.59894975,61310.0,61309.0,0.003636]
[1728648815478,0.76839245,61310.0,61309.0,0.003636]
[1728648818304,0.67739245,61310.0,61309.0,0.003636]
[1728648820151,0.72622791,61310.0,61309.0,0.003636]
[1728648821325,0.628557,61310.0,61309.0,0.003636]
[1728648821570,0.72622791,61310.0,61309.0,0.003636]
[1728648822530,0.84711598,61310.0,61309.0,0.003636]
[1728648822733,0.87033314,61310.0,61309.0,0.003636]
[1728648822962,0.99242178,61310.0,61309.0,0.003636]
[1728648823190,0.87033314,61310.0,61309.0,0.003636]
[1728648823892,0.99249312,61310.0,61309.0,0.003636]
[1728648824361,0.87115114,61310.0,61309.0,0.003636]
[1728648825345,1.84887814,61310.0,61309.0,0.003636]
[1728648825573,1.84887814,61310.0,61303.0,0.001636]
[1728648825574,0.967321,61304.0,61303.0,0.001636]
[1728648825811,1.40034977,61304.0,61303.0,0.001636]
[1728648826037,1.63815586,61304.0,61303.0,0.001636]
[1728648826503,1.64015586,61304.0,61303.0,0.001636]
[1728648826968,1.65415586,61304.0,61303.0,0.001636]
[1728648827189,1.94318856,61304.0,61303.0,0.001636]
[1728648827660,1.92918856,61304.0,61303.0,0.001636]
[1728648827901,1.83759856,61304.0,61303.0,0.001636]
[1728648828129,3.29841667,61304.0,61303.0,0.001636]
[1728648828346,3.13343656,61304.0,61303.0,0.001636]
[1728648828581,2.89569145,61304.0,61303.0,0.001636]
[1728648828816,2.92466313,61304.0,61303.0,0.001636]
[1728648829518,3.02265313,61304.0,61303.0,0.001636]
[1728648829973,3.0140271,61304.0,61303.0,0.001636]
[1728648830208,3.0140271,61304.0,61291.0,0.24774756]
[1728648830209,0.163153,61292.0,61291.0,0.24774756]
[1728648830453,0.89870583,61292.0,61291.0,0.26311166]
[1728648830693,0.1,61291.0,61286.0,0.001636]
[1728648830922,0.39628947,61287.0,61286.0,0.001636]
[1728648831160,0.56559875,61287.0,61286.0,0.001636]
[1728648831404,0.83504145,61287.0,61286.0,0.001636]
[1728648831655,0.95324719,61287.0,61286.0,0.001636]
[1728648831906,0.88003003,61287.0,61286.0,0.001636]
[1728648832155,0.97765291,61287.0,61286.0,0.001636]
[1728648832400,0.95318596,61287.0,61286.0,0.001636]
[1728648832898,0.96771786,61287.0,61286.0,0.001636]
[1728648833352,0.95731218,61287.0,61286.0,0.001636]
[1728648833577,0.97131218,61287.0,61286.0,0.001636]
[1728648833829,0.78700015,61287.0,61286.0,0.001636]
[1728648834072,0.97131218,61287.0,61286.0,0.001636]
[1728648834288,0.4604753,61287.0,61286.0,0.001636]
[1728648834514,0.64478733,61287.0,61286.0,0.001636]
[1728648836143,0.64678733,61287.0,61286.0,0.001636]
[1728648837067,0.64678733,61287.0,61280.0,0.00189]
[1728648837068,0.163174,61284.0,61280.0,0.00189]
[1728648837325,0.163174,61284.0,61278.0,0.001636]
[1728648837326,0.163188,61279.0,61278.0,0.001636]
[1728648837571,0.63980933,61279.0,61278.0,0.001636]
[1728648837812,0.68851533,61279.0,61278.0,0.001636]
[1728648838043,0.63980933,61279.0,61278.0,0.001636]
[1728648838265,0.85995803,61279.0,61278.0,0.001636]
[1728648838498,0.81125203,61279.0,61278.0,0.001636]
[1728648838732,0.82525203,61279.0,61278.0,0.001636]
[1728648840126,0.83925203,61279.0,61278.0,0.001636]
[1728648840353,0.85413113,61279.0,61278.0,0.001636]
[1728648840592,0.64480933,61279.0,61278.0,0.001636]
[1728648843456,0.63080933,61279.0,61278.0,0.001636]
[1728648843683,0.61680933,61279.0,61278.0,0.001636]
[1728648843928,0.63080933,61279.0,61278.0,0.001636]
[1728648844190,0.64480933,61279.0,61278.0,0.001636]
[1728648844434,0.80025203,61279.0,61278.0,0.001636]
[1728648844691,0.81425203,61279.0,61278.0,0.001636]
[1728648849034,0.80025203,61279.0,61278.0,0.001636]
[1728648849249,0.78625203,61279.0,61278.0,0.001636]
[1728648849494,0.80025203,61279.0,61278.0,0.001636]
[1728648849935,0.78625203,61279.0,61278.0,0.001636]
[1728648850164,0.81425203,61279.0,61278.0,0.001636]
[1728648850383,0.89824203,61279.0,61278.0,0.001636]
[1728648850615,0.9237851,61279.0,61278.0,0.001636]
[1728648850872,0.9377851,61279.0,61278.0,0.001636]
[1728648853064,0.6703524,61279.0,61278.0,0.001636]
[1728648853289,0.4604973,61279.0,61278.0,0.001636]
[1728648853978,0.4324973,61279.0,61278.0,0.001636]
[1728648854486,0.4604973,61279.0,61278.0,0.001636]
[1728648854728,0.4464973,61279.0,61278.0,0.001636]
[1728648854952,0.60313813,61279.0,61278.0,0.001636]
[1728648855666,0.83688569,61279.0,61278.0,0.001636]
[1728648855919,0.77545016,61279.0,61278.0,0.001636]
[1728648856159,0.78745016,61279.0,61278.0,0.001636]
[1728648857358,0.77345016,61279.0,61278.0,0.001636]
[1728648858024,0.78945016,61279.0,61278.0,0.001636]
[1728648858264,0.77545016,61279.0,61278.0,0.001636]
[1728648858731,0.78945016,61279.0,61278.0,0.001636]
[1728648859166,0.77545016,61279.0,61278.0,0.001636]
[1728648859390,0.77345016,61279.0,61278.0,0.001636]
[1728648859647,0.78745016,61279.0,61278.0,0.001636]
[1728648859879,0.77345016,61279.0,61278.0,0.001636]
[1728648860092,0.75945016,61279.0,61278.0,0.001636]
[1728648860340,0.87144016,61279.0,61278.0,0.001636]
[1728648860571,0.88544016,61279.0,61278.0,0.001636]
[1728648862694,1.05744016,61279.0,61278.0,0.001636]
[1728648862933,0.88544016,61279.0,61278.0,0.001636]
[1728648863899,0.90022261,61279.0,61278.0,0.001636]
[1728648864619,1.4139822,61279.0,61278.0,0.001636]
[1728648864881,1.50692261,61279.0,61278.0,0.001636]
[1728648865120,2.11394161,61279.0,61278.0,0.001636]
[1728648865380,2.18186364,61279.0,61278.0,0.001636]
[1728648865628,2.04623345,61279.0,61278.0,0.001636]
[1728648865866,1.99755161,61279.0,61278.0,0.001636]
[1728648866347,1.95405161,61279.0,61278.0,0.001636]
[1728648866574,2.02507437,61279.0,61278.0,0.001636]
[1728648866829,1.47995537,61279.0,61278.0,0.001636]
[1728648867340,1.8285154,61279.0,61278.0,0.001636]
[1728648867578,1.87719725,61279.0,61278.0,0.001636]
[1728648868083,1.75549264,61279.0,61278.0,0.001636]
[1728648868807,1.72749264,61279.0,61278.0,0.001636]
[1728648869055,1.72749264,61279.0,61273.0,0.00981]
[1728648869056,0.82472506,61274.0,61273.0,0.00981]
[1728648869298,2.67360114,61274.0,61273.0,0.00981]
[1728648869525,2.68454514,61274.0,61273.0,0.00981]
[1728648870022,2.49030414,61274.0,61273.0,0.00981]
[1728648870475,2.63677144,61274.0,61273.0,0.00981]
[1728648870699,2.82021414,61274.0,61273.0,0.00981]
[1728648871178,2.63276533,61274.0,61273.0,0.00981]
[1728648871428,2.61074433,61274.0,61273.0,0.00981]
[1728648871903,2.58274433,61274.0,61273.0,0.00981]
[1728648872371,2.61074433,61274.0,61273.0,0.00981]
[1728648873294,2.79674433,61274.0,61273.0,0.00981]
[1728648873525,2.78274433,61274.0,61273.0,0.00981]
[1728648873757,2.79674433,61274.0,61273.0,0.00981]
[1728648873988,2.77874333,61274.0,61273.0,0.00981]
[1728648874213,2.67037033,61274.0,61273.0,0.00981]
[1728648874672,1.84933733,61274.0,61273.0,0.00981]
[1728648877239,1.84933733,61274.0,61261.0,0.24774756]
[1728648877240,0.286227,61264.0,61261.0,0.24774756]
[1728648877573,0.72244833,61264.0,61261.0,0.24774756]
[1728648877808,0.72244833,61264.0,61254.0,0.24774756]
[1728648878446,0.75044833,61264.0,61254.0,0.24774756]
[1728648878897,0.75244833,61264.0,61254.0,0.24774756]
[1728648879116,1.52382882,61264.0,61254.0,0.24774756]
[1728648879334,1.56130616,61264.0,61254.0,0.24774756]
[1728648879559,1.54730616,61264.0,61254.0,0.24774756]
[1728648880073,1.54188316,61264.0,61254.0,0.24774756]
[1728648880296,1.46655316,61264.0,61254.0,0.24774756]
[1728648880530,1.43705316,61264.0,61254.0,0.24774756]
[1728648881710,1.16814113,61264.0,61254.0,0.24774756]
[1728648881935,0.87339533,61264.0,61263.0,0.001936]
[1728648882175,0.88791282,61264.0,61263.0,0.001936]
[1728648883114,0.65936582,61264.0,61263.0,0.001936]
[1728648884721,0.64484833,61264.0,61263.0,0.001936]
[1728648884932,0.93639603,61264.0,61263.0,0.001936]
[1728648885203,0.81429103,61264.0,61263.0,0.001936]
[1728648885644,0.91196865,61264.0,61263.0,0.001936]
[1728648886087,0.81429103,61264.0,61263.0,0.001936]
[1728648886553,0.91196882,61264.0,61263.0,0.001936]
[1728648888370,0.91196534,61264.0,61263.0,0.001936]
[1728648889315,0.4605363,61264.0,61263.0,0.001936]
[1728648890029,0.64484833,61264.0,61263.0,0.001936]
[1728648890298,0.70410516,61264.0,61263.0,0.001936]
[1728648890513,0.66568679,61264.0,61263.0,0.001936]
[1728648890748,0.50937476,61264.0,61263.0,0.001936]
[1728648890974,0.4465363,61264.0,61263.0,0.001936]
[1728648891207,0.4325363,61264.0,61263.0,0.001936]
[1728648891432,0.47775731,61264.0,61263.0,0.001936]
[1728648891668,0.49175731,61264.0,61263.0,0.001936]
[1728648892118,0.4465363,61264.0,61263.0,0.001936]
[1728648892351,0.4605363,61264.0,61263.0,0.001936]
[1728648892818,0.4465363,61264.0,61263.0,0.001936]
[1728648893058,0.4605363,61264.0,61263.0,0.001936]
[1728648893184,0.4465363,61264.0,61263.0,0.001936]
[1728648893385,0.4325363,61264.0,61263.0,0.001936]
[1728648893609,0.4465363,61264.0,61263.0,0.001936]
[1728648893818,0.4605363,61264.0,61263.0,0.001936]
[1728648894533,0.629979,61264.0,61263.0,0.001936]
[1728648900603,0.4605363,61264.0,61263.0,0.001936]
[1728648901506,0.3605363,61264.0,61263.0,0.001936]
[1728648901869,0.3605363,61264.0,61263.0,0.0183233]
[1728648902102,0.3605363,61264.0,61263.0,0.001936]
[1728648904767,0.79259589,61264.0,61263.0,0.001936]
[1728648904972,0.71429103,61264.0,61263.0,0.001936]
[1728648905179,0.81429103,61264.0,61263.0,0.001936]
[1728648905759,0.80029103,61264.0,61263.0,0.001936]
[1728648906353,0.78629103,61264.0,61263.0,0.001936]
[1728648906797,0.81429103,61264.0,61263.0,0.001936]
[1728648907233,0.80029103,61264.0,61263.0,0.001936]
[1728648908042,0.81629103,61264.0,61263.0,0.001936]
[1728648908239,0.82920095,61264.0,61263.0,0.001936]
[1728648910284,0.92719095,61264.0,61263.0,0.001936]
[1728648910524,0.82920095,61264.0,61263.0,0.001936]
[1728648913345,0.82920095,61264.0,61263.0,0.001936]
[1728648916373,0.64484833,61264.0,61263.0,0.001936]
[1728648921594,0.79135933,61264.0,61263.0,0.001936]
[1728648922539,0.7281289,61264.0,61263.0,0.001936]
[1728648923030,0.8492105,61264.0,61263.0,0.001936]
[1728648923270,0.8352105,61264.0,61263.0,0.001936]
[1728648923531,1.0186532,61264.0,61263.0,0.001936]
[1728648923760,1.0046532,61264.0,61263.0,0.001936]
[1728648923983,0.9906532,61264.0,61263.0,0.001936]
[1728648924218,1.0046532,61264.0,61263.0,0.001936]
[1728648924441,1.0186532,61264.0,61263.0,0.001936]
[1728648926062,1.01900301,61264.0,61263.0,0.001936]
[1728648926517,0.89792141,61264.0,61263.0,0.001936]
[1728648927459,0.7510606,61264.0,61263.0,0.001936]
[1728648928632,0.77686731,61264.0,61263.0,0.001936]
[1728648928872,0.89794891,61264.0,61263.0,0.001936]
[1728648929057,0.7510606,61264.0,61263.0,0.001936]
[1728648929273,0.99880816,61264.0,61263.0,0.001936]
[1728648929494,0.98856566,61264.0,61263.0,0.001936]
[1728648929740,0.7510606,61264.0,61263.0,0.001936]
[1728648929991,0.8721422,61264.0,61263.0,0.001936]
[1728648931868,0.7510606,61264.0,61263.0,0.001936]
[1728648944717,1.49880816,61264.0,61263.0,0.001936]
[1728648944944,1.60959029,61264.0,61263.0,0.001936]
[1728648945432,1.51150869,61264.0,61263.0,0.001936]
[1728648945668,1.63259029,61264.0,61263.0,0.001936]
[1728648945890,1.63459029,61264.0,61263.0,0.001936]
[1728648947970,1.62059029,61264.0,61263.0,0.001936]
[1728648948404,1.63459029,61264.0,61263.0,0.001936]
[1728648949122,1.88882029,61264.0,61263.0,0.001936]
[1728648949345,1.90282029,61264.0,61263.0,0.001936]
[1728648949571,1.88882029,61264.0,61263.0,0.001936]
[1728648949805,2.08522029,61264.0,61263.0,0.001936]
[1728648950291,2.07122029,61264.0,61263.0,0.001936]
[1728648950558,2.08522029,61264.0,61263.0,0.001936]
[1728648953160,2.08543171,61264.0,61263.0,0.001936]
[1728648955300,1.81720171,61264.0,61263.0,0.001936]
[1728648955517,3.59060771,61264.0,61263.0,0.001936]
[1728648958406,3.59714471,61264.0,61263.0,0.001936]
[1728648958848,3.58314471,61264.0,61263.0,0.001936]
[1728648959086,3.56914471,61264.0,61263.0,0.001936]
[1728648959545,3.59714471,61264.0,61263.0,0.001936]
[1728648961381,3.00888451,61264.0,61263.0,0.001936]
[1728648961612,2.99993739,61264.0,61263.0,0.001936]
[1728648964757,2.69893939,61264.0,61263.0,0.001936]
[1728648966177,2.69693939,61264.0,61263.0,0.001936]
[1728648966422,1.99033579,61264.0,61263.0,0.001936]
[1728648966670,1.79788209,61264.0,61263.0,0.001936]
[1728648966901,1.19789649,61264.0,61263.0,0.083236]
[1728648967806,1.18389649,61264.0,61263.0,0.083236]
[1728648967957,0.9325363,61264.0,61263.0,0.083236]
[1728648968185,1.04392071,61264.0,61263.0,0.083236]
[1728648968393,1.04392071,61264.0,61263.0,0.001936]
[1728648968608,1.02992071,61264.0,61263.0,0.001936]
[1728648968980,1.04392071,61264.0,61263.0,0.001936]
[1728648969185,1.05792071,61264.0,61263.0,0.001936]
[1728648971725,0.9605363,61264.0,61263.0,0.001936]
[1728648973546,1.0816179,61264.0,61263.0,0.001936]
[1728648974451,1.31982443,61264.0,61263.0,0.001936]
[1728648974738,1.31982901,61264.0,61263.0,0.001936]
[1728648978643,1.31983358,61264.0,61263.0,0.001936]
[1728648979061,1.40893256,61264.0,61263.0,0.001936]
[1728648979299,1.31983358,61264.0,61263.0,0.001936]
[1728648987473,1.0816179,61264.0,61263.0,0.001936]
[1728648993604,1.2026995,61264.0,61263.0,0.001936]
[1728648993825,1.1886995,61264.0,61263.0,0.001936]
[1728648994055,1.3721422,61264.0,61263.0,0.001936]
[1728648994490,1.2510606,61264.0,61263.0,0.001936]
[1728648994700,1.2370606,61264.0,61263.0,0.001936]
[1728648995130,1.2510606,61264.0,61263.0,0.001936]
[1728648995364,1.2460606,61264.0,61263.0,0.001936]
[1728648995857,1.2740606,61264.0,61263.0,0.001936]
[1728648995985,1.3951422,61264.0,61263.0,0.001936]
[1728648996423,1.2740606,61264.0,61263.0,0.001936]
[1728649001517,1.5716422,61264.0,61263.0,0.001936]
[1728649001762,1.4505606,61264.0,61263.0,0.001936]
[1728649002724,1.2811179,61264.0,61263.0,0.001936]
[1728649002944,1.1046179,61264.0,61263.0,0.001936]
[1728649003288,1.0906179,61264.0,61263.0,0.001936]
[1728649004714,1.1046179,61264.0,61263.0,0.001936]
[1728649005598,1.0906179,61264.0,61263.0,0.001936]
[1728649005746,1.1046179,61264.0,61263.0,0.001936]
[1728649007447,1.2740606,61264.0,61263.0,0.001936]
[1728649009166,1.0816179,61264.0,61263.0,0.001936]
[1728649015613,0.5816179,61264.0,61263.0,0.001936]
[1728649015841,0.4605363,61264.0,61263.0,0.001936]
[1728649016023,0.4605363,61264.0,61263.0,0.01988937]
[1728649016229,0.4605363,61264.0,61263.0,0.001936]
[1728649016856,0.4465363,61264.0,61263.0,0.001936]
[1728649017719,0.4605363,61264.0,61263.0,0.001936]
[1728649023725,0.60754812,61264.0,61263.0,0.001936]
[1728649023962,0.4605363,61264.0,61263.0,0.001936]
[1728649024420,0.60753997,61264.0,61263.0,0.001936]
[1728649024636,0.4605363,61264.0,61263.0,0.001936]
[1728649031893,0.61167663,61264.0,61263.0,0.001936]
[1728649032149,0.73275823,61264.0,61263.0,0.001936]
[1728649032297,0.90171959,61264.0,61263.0,0.001936]
[1728649032706,0.90165695,61264.0,61263.0,0.001936]
[1728649033518,0.87365695,61264.0,61263.0,0.001936]
[1728649033724,0.88765695,61264.0,61263.0,0.001936]
[1728649033983,0.90165695,61264.0,61263.0,0.001936]
[1728649034870,0.73275823,61264.0,61263.0,0.001936]
[1728649035563,1.09320238,61264.0,61263.0,0.001936]
[1728649035772,0.85383983,61264.0,61263.0,0.001936]
[1728649038903,0.89807019,61264.0,61263.0,0.001936]
[1728649039173,1.01915179,61264.0,61263.0,0.001936]
[1728649039416,0.85383983,61264.0,61263.0,0.001936]
[1728649040313,1.09320238,61264.0,61263.0,0.001936]
[1728649040516,0.85383983,61264.0,61263.0,0.001936]
[1728649041164,0.4605363,61264.0,61263.0,0.001936]
[1728649041376,0.4465363,61264.0,61263.0,0.001936]
[1728649041596,0.5676179,61264.0,61263.0,0.001936]
[1728649041812,0.5816179,61264.0,61263.0,0.001936]
[1728649042016,0.5676179,61264.0,61263.0,0.001936]
[1728649042461,0.4325363,61264.0,61263.0,0.001936]
[1728649042693,0.4465363,61264.0,61263.0,0.001936]
[1728649043152,0.4325363,61264.0,61263.0,0.001936]
[1728649043394,0.4465363,61264.0,61263.0,0.001936]
[1728649043657,0.4325363,61264.0,61263.0,0.001936]
[1728649043881,0.4465363,61264.0,61263.0,0.001936]
[1728649044108,0.5676179,61264.0,61263.0,0.001936]
[1728649044333,0.5536179,61264.0,61263.0,0.001936]
[1728649044567,0.5676179,61264.0,61263.0,0.001936]
[1728649045238,0.5536179,61264.0,61263.0,0.001936]
[1728649045446,0.5676179,61264.0,61263.0,0.001936]
[1728649045962,0.5536179,61264.0,61263.0,0.001936]
[1728649046136,0.4325363,61264.0,61263.0,0.001936]
[1728649046387,0.4465363,61264.0,61263.0,0.001936]
[1728649046602,0.4605363,61264.0,61263.0,0.001936]
[1728649047018,0.4465363,61264.0,61263.0,0.001936]
[1728649047224,0.4605363,61264.0,61263.0,0.001936]
[1728649047629,0.4465363,61264.0,61263.0,0.001936]
[1728649047772,0.5829533,61264.0,61263.0,0.001936]
[1728649047972,0.5969533,61264.0,61263.0,0.001936]
[1728649048388,0.5829533,61264.0,61263.0,0.001936]
[1728649048609,0.5969533,61264.0,61263.0,0.001936]
[1728649049025,0.57246272,61264.0,61263.0,0.001936]
[1728649049220,0.4745363,61264.0,61263.0,0.001936]
[1728649049868,0.5969533,61264.0,61263.0,0.001936]
[1728649050318,0.59694005,61264.0,61263.0,0.001936]
[1728649052331,0.71802165,61264.0,61263.0,0.001936]
[1728649052774,0.7650606,61264.0,61263.0,0.001936]
[1728649053227,0.5956179,61264.0,61263.0,0.001936]
[1728649055033,0.5816179,61264.0,61263.0,0.001936]
[1728649055261,0.5676179,61264.0,61263.0,0.001936]
[1728649055716,0.5816179,61264.0,61263.0,0.001936]
[1728649057748,0.59619268,61264.0,61263.0,0.001936]
[1728649057967,0.76563538,61264.0,61263.0,0.001936]
[1728649061495,0.91253248,61264.0,61263.0,0.001936]
[1728649062357,0.89853248,61264.0,61263.0,0.001936]
[1728649062596,0.91253248,61264.0,61263.0,0.001936]
[1728649063157,0.89853248,61264.0,61263.0,0.001936]
[1728649063365,0.91253248,61264.0,61263.0,0.001936]
[1728649064438,0.91258011,61264.0,61263.0,0.001936]
[1728649066103,0.76563538,61264.0,61263.0,0.001936]
[1728649066793,0.91258011,61264.0,61263.0,0.001936]
[1728649067219,0.76563538,61264.0,61263.0,0.001936]
[1728649067630,0.91258011,61264.0,61263.0,0.001936]
[1728649068527,0.76563538,61264.0,61263.0,0.001936]
[1728649068738,0.91258011,61264.0,61263.0,0.001936]
[1728649069233,0.91258212,61264.0,61263.0,0.001936]
[1728649069886,0.76563538,61264.0,61263.0,0.001936]
[1728649070093,0.75163538,61264.0,61263.0,0.001936]
[1728649070304,0.73763538,61264.0,61263.0,0.001936]
[1728649070511,0.89858212,61264.0,61263.0,0.001936]
[1728649070762,0.91258212,61264.0,61263.0,0.001936]
[1728649071184,0.89858212,61264.0,61263.0,0.001936]
[1728649071380,0.91258212,61264.0,61263.0,0.001936]
[1728649072652,0.76563538,61264.0,61263.0,0.001936]
[1728649074840,0.7510606,61264.0,61263.0,0.001936]
[1728649075042,0.4605363,61264.0,61263.0,0.001936]
[1728649081334,0.5561363,61264.0,61263.0,0.001936]
[1728649081618,0.70308459,61264.0,61263.0,0.001936]
[1728649082100,0.7829179,61264.0,61263.0,0.001936]
[1728649082319,1.37769914,61264.0,61263.0,0.001936]
[1728649082535,1.38180196,61264.0,61263.0,0.001936]
[1728649082768,1.38380196,61264.0,61263.0,0.001936]
[1728649082987,1.38180196,61264.0,61263.0,0.001936]
[1728649083383,1.36780196,61264.0,61263.0,0.001936]
[1728649083593,1.38180196,61264.0,61263.0,0.001936]
[1728649083806,1.36780196,61264.0,61263.0,0.001936]
[1728649084162,1.38180196,61264.0,61263.0,0.001936]
[1728649084795,1.36780196,61264.0,61263.0,0.001936]
[1728649085218,1.38180196,61264.0,61263.0,0.001936]
[1728649085430,1.38380196,61264.0,61263.0,0.001936]
[1728649086059,1.38180196,61264.0,61263.0,0.001936]
[1728649086310,1.36980196,61264.0,61263.0,0.001936]
[1728649086513,1.38380196,61264.0,61263.0,0.001936]
[1728649086735,1.36980196,61264.0,61263.0,0.001936]
[1728649087147,1.53508315,61264.0,61263.0,0.001936]
[1728649087354,1.38180196,61264.0,61263.0,0.001936]
[1728649087557,1.38380196,61264.0,61263.0,0.001936]
[1728649087763,1.26272036,61264.0,61263.0,0.001936]
[1728649087991,1.49088356,61264.0,61263.0,0.001936]
[1728649088190,1.66815703,61264.0,61263.0,0.001936]
[1728649090123,1.65415703,61264.0,61263.0,0.001936]
[1728649090333,1.66815703,61264.0,61263.0,0.001936]
[1728649090543,1.65415703,61264.0,61263.0,0.001936]
[1728649090732,1.66815703,61264.0,61263.0,0.001936]
[1728649091725,1.2625922,61264.0,61263.0,0.001936]
[1728649091942,1.42783228,61264.0,61263.0,0.001936]
[1728649092144,1.66777542,61264.0,61263.0,0.001936]
[1728649092559,1.67431242,61264.0,61263.0,0.001936]
[1728649094304,1.50907234,61264.0,61263.0,0.001936]
[1728649094520,1.51107234,61264.0,61263.0,0.001936]
[1728649094725,1.67631242,61264.0,61263.0,0.001936]
[1728649094935,1.51107234,61264.0,61263.0,0.001936]
[1728649095782,1.2711292,61264.0,61263.0,0.001936]
[1728649097813,1.51067421,61264.0,61263.0,0.001936]
[1728649098552,5.15169321,61264.0,61263.0,0.001936]
[1728649098773,0.263254,61254.0,61253.0,0.001034]
[1728649098969,1.70566037,61254.0,61253.0,0.001034]
[1728649099900,1.71966037,61254.0,61253.0,0.001034]
[1728649100125,1.73366037,61254.0,61253.0,0.001034]
[1728649100347,1.71966037,61254.0,61253.0,0.001034]
[1728649100552,1.85455869,61254.0,61253.0,0.001034]
[1728649100892,1.86855869,61254.0,61253.0,0.001034]
[1728649101322,1.74747709,61254.0,61253.0,0.001034]
[1728649101834,1.86855869,61254.0,61253.0,0.001034]
[1728649102037,1.85455869,61254.0,61253.0,0.001034]
[1728649102238,1.86855869,61254.0,61253.0,0.001034]
[1728649102903,2.0935224,61254.0,61253.0,0.001034]
[1728649103114,2.1075224,61254.0,61253.0,0.001034]
[1728649103334,1.86855869,61254.0,61253.0,0.001034]
[1728649105604,1.85455869,61254.0,61253.0,0.001034]
[1728649105813,1.84055869,61254.0,61253.0,0.001034]
[1728649106020,1.86855869,61254.0,61253.0,0.001034]
[1728649106455,1.88334148,61254.0,61253.0,0.001034]
[1728649107992,2.03007857,61254.0,61253.0,0.001034]
[1728649109135,1.04410657,61254.0,61253.0,0.001034]
[1728649109333,2.11474357,61254.0,61253.0,0.001034]
[1728649110291,1.96800648,61254.0,61253.0,0.001034]
[1728649110993,1.95968557,61254.0,61253.0,0.001034]
[1728649112228,1.96168557,61254.0,61253.0,0.001034]
[1728649112481,2.05326229,61254.0,61253.0,0.001034]
[1728649113412,0.4670448,61249.0,61248.0,0.001634]
[1728649113650,2.4554521,61249.0,61248.0,0.001634]
[1728649114133,2.4415161,61249.0,61248.0,0.001634]
[1728649114632,0.383478,61245.0,61241.0,0.001636]
[1728649114875,3.2618882,61245.0,61241.0,0.001636]
[1728649115103,3.49989511,61245.0,61241.0,0.001636]
[1728649115563,3.58209511,61245.0,61241.0,0.001636]